[Event "FIDE Grand Swiss 2023"]
[Site "Villa Marina, Douglas, Isle of Man, Isle Of Man"]
[Date "2023.11.03"]
[Round "9.1"]
[White "Caruana, Fabiano"]
[Black "Deac, Bogdan-Daniel"]
[Result "1/2-1/2"]
[TimeControl "40/90 + 30 + 30s/move"]
[WhiteFideId "2020009"]
[BlackFideId "1226380"]
[WhiteElo "2786"]
[BlackElo "2701"]

1. e4 {[%clk 01:40:54]} {[%emt 00:00:06]} e5 {[%clk 01:40:58]} {[%emt
00:00:02]} 2. Nf3 {[%clk 01:41:16]} {[%emt 00:00:08]} Nc6 {[%clk 01:41:27]}
{[%emt 00:00:02]} 3. Bc4 {[%clk 01:41:29]} {[%emt 00:00:17]} Nf6 {[%clk
01:41:50]} {[%emt 00:00:06]} 4. d3 {[%clk 01:41:53]} {[%emt 00:00:06]} Bc5
{[%clk 01:42:18]} {[%emt 00:00:03]} 5. c3 {[%clk 01:42:13]} {[%emt 00:00:10]}
d6 {[%clk 01:42:43]} {[%emt 00:00:04]} 6. Bg5 {[%clk 01:42:37]} {[%emt
00:00:05]} h6 {[%clk 01:43:10]} {[%emt 00:00:04]} 7. Bh4 {[%clk 01:43:02]}
{[%emt 00:00:04]} a6 {[%clk 01:43:37]} {[%emt 00:00:03]} 8. Nbd2 {[%clk
01:41:12]} {[%emt 00:02:20]} Ba7 {[%clk 01:44:05]} {[%emt 00:00:03]} 9. O-O
{[%clk 01:41:33]} {[%emt 00:00:09]} Qe7 {[%clk 01:44:32]} {[%emt 00:00:03]} 10.
b4 {[%clk 01:41:42]} {[%emt 00:00:21]} g5 {[%clk 01:45:00]} {[%emt 00:00:02]}
11. Bg3 {[%clk 01:42:07]} {[%emt 00:00:05]} Nh7 {[%clk 01:45:25]} {[%emt
00:00:05]} 12. Bd5 {[%clk 01:42:22]} {[%emt 00:00:15]} Nf8 {[%clk 01:45:36]}
{[%emt 00:00:19]} 13. Nc4 {[%clk 01:42:42]} {[%emt 00:00:10]} Ng6 {[%clk
01:37:14]} {[%emt 00:08:53]} 14. Ne3 {[%clk 01:42:47]} {[%emt 00:00:25]} Qd8
{[%clk 01:32:40]} {[%emt 00:05:04]} 15. h3 {[%clk 01:26:47]} {[%emt 00:16:30]}
h5 {[%clk 01:18:46]} {[%emt 00:14:24]} 16. Qb3 {[%clk 01:17:54]} {[%emt
00:09:23]} O-O {[%clk 01:00:03]} {[%emt 00:19:13]} 17. a4 {[%clk 01:10:07]}
{[%emt 00:08:18]} g4 {[%clk 00:48:34]} {[%emt 00:11:59]} 18. hxg4 {[%clk
01:10:32]} {[%emt 00:00:04]} hxg4 {[%clk 00:49:00]} {[%emt 00:00:04]} 19. Nh2
{[%clk 01:10:49]} {[%emt 00:00:13]} Qg5 {[%clk 00:49:21]} {[%emt 00:00:09]} 20.
b5 {[%clk 00:58:25]} {[%emt 00:12:53]} Na5 {[%clk 00:47:12]} {[%emt 00:02:40]}
21. Qc2 {[%clk 00:57:45]} {[%emt 00:01:10]} Bxe3 {[%clk 00:33:42]} {[%emt
00:14:00]} 22. fxe3 {[%clk 00:58:05]} {[%emt 00:00:11]} Qxe3+ {[%clk 00:34:11]}
{[%emt 00:00:01]} 23. Qf2 {[%clk 00:57:51]} {[%emt 00:00:43]} Qxf2+ {[%clk
00:31:50]} {[%emt 00:02:51]} 24. Rxf2 {[%clk 00:58:13]} {[%emt 00:00:08]} Kg7
{[%clk 00:27:06]} {[%emt 00:05:14]} 25. d4 {[%clk 00:50:36]} {[%emt 00:08:07]}
Bd7 {[%clk 00:24:48]} {[%emt 00:02:48]} 26. Nf1 {[%clk 00:44:06]} {[%emt
00:07:00]} axb5 {[%clk 00:15:19]} {[%emt 00:10:00]} 27. axb5 {[%clk 00:44:22]}
{[%emt 00:00:14]} c6 {[%clk 00:15:33]} {[%emt 00:00:15]} 28. bxc6 {[%clk
00:44:02]} {[%emt 00:00:50]} bxc6 {[%clk 00:15:23]} {[%emt 00:00:40]} 29. Ba2
{[%clk 00:41:36]} {[%emt 00:02:56]} Nb7 {[%clk 00:10:58]} {[%emt 00:04:56]} 30.
Rb1 {[%clk 00:33:00]} {[%emt 00:09:06]} Nd8 {[%clk 00:10:04]} {[%emt 00:01:24]}
31. Ne3 {[%clk 00:32:50]} {[%emt 00:00:40]} Ra3 {[%clk 00:08:19]} {[%emt
00:02:15]} 32. Rb3 {[%clk 00:28:27]} {[%emt 00:04:53]} Rxb3 {[%clk 00:04:30]}
{[%emt 00:04:19]} 33. Bxb3 {[%clk 00:28:53]} {[%emt 00:00:04]} Be6 {[%clk
00:02:46]} {[%emt 00:02:14]} 34. Nf5+ {[%clk 00:19:38]} {[%emt 00:09:44]} Bxf5
{[%clk 00:02:49]} {[%emt 00:00:28]} 35. exf5 {[%clk 00:20:04]} {[%emt
00:00:04]} Nf4 {[%clk 00:03:13]} {[%emt 00:00:06]} 36. dxe5 {[%clk 00:17:47]}
{[%emt 00:02:47]} dxe5 {[%clk 00:03:38]} {[%emt 00:00:05]} 37. Bxf4 {[%clk
00:18:13]} {[%emt 00:00:03]} exf4 {[%clk 00:04:00]} {[%emt 00:00:08]} 38. Rxf4
{[%clk 00:18:41]} {[%emt 00:00:02]} Kf6 {[%clk 00:04:24]} {[%emt 00:00:07]} 39.
Kf2 {[%clk 00:18:16]} {[%emt 00:00:54]} Nb7 {[%clk 00:00:56]} {[%emt 00:03:58]}
40. Rxg4 {[%clk 00:18:21]} {[%emt 00:00:25]} Kxf5 {[%clk 00:00:34]} {[%emt
00:00:52]} 41. Rc4 {[%clk 00:18:08]} {[%emt 00:00:43]} Rc8 {[%clk 00:00:32]}
{[%emt 00:00:32]} 42. Kf3 {[%clk 00:16:30]} {[%emt 00:02:08]} Rc7 {[%clk
00:50:19]} {[%emt 00:00:43]} 43. Rf4+ {[%clk 01:06:05]} {[%emt 00:00:56]}
1/2-1/2

[Event "FIDE Grand Swiss 2023"]
[Site "Villa Marina, Douglas, Isle of Man, Isle Of Man"]
[Date "2023.11.03"]
[Round "9.8"]
[White "Wojtaszek, Radoslaw"]
[Black "Aronian, Levon"]
[Result "1/2-1/2"]
[TimeControl "40/90 + 30 + 30s/move"]
[WhiteFideId "1118358"]
[BlackFideId "13300474"]
[WhiteElo "2668"]
[BlackElo "2742"]

1. d4 {[%clk 01:40:57]} {[%emt 00:00:02]} Nf6 {[%clk 01:40:54]} {[%emt
00:00:06]} 2. c4 {[%clk 01:41:21]} {[%emt 00:00:06]} e6 {[%clk 01:41:20]}
{[%emt 00:00:04]} 3. Nf3 {[%clk 01:41:45]} {[%emt 00:00:06]} d5 {[%clk
01:41:46]} {[%emt 00:00:04]} 4. g3 {[%clk 01:42:11]} {[%emt 00:00:05]} Be7
{[%clk 01:42:11]} {[%emt 00:00:05]} 5. Bg2 {[%clk 01:42:36]} {[%emt 00:00:04]}
O-O {[%clk 01:42:36]} {[%emt 00:00:05]} 6. Nc3 {[%clk 01:43:02]} {[%emt
00:00:04]} Nc6 {[%clk 01:43:00]} {[%emt 00:00:06]} 7. Ne5 {[%clk 01:39:10]}
{[%emt 00:04:22]} Nxe5 {[%clk 01:42:16]} {[%emt 00:01:14]} 8. dxe5 {[%clk
01:38:19]} {[%emt 00:01:22]} Nd7 {[%clk 01:42:44]} {[%emt 00:00:01]} 9. cxd5
{[%clk 01:36:26]} {[%emt 00:02:24]} Nxe5 {[%clk 01:43:05]} {[%emt 00:00:08]} 10.
O-O {[%clk 01:31:53]} {[%emt 00:05:02]} exd5 {[%clk 01:43:05]} {[%emt
00:00:31]} 11. Nxd5 {[%clk 01:32:17]} {[%emt 00:00:06]} Bd6 {[%clk 01:43:25]}
{[%emt 00:00:10]} 12. b3 {[%clk 01:30:36]} {[%emt 00:02:11]} c6 {[%clk
01:39:58]} {[%emt 00:03:57]} 13. Ne3 {[%clk 01:30:39]} {[%emt 00:00:27]} Bc5
{[%clk 01:33:44]} {[%emt 00:06:44]} 14. Qc2 {[%clk 01:29:11]} {[%emt 00:01:59]}
Bd4 {[%clk 01:32:27]} {[%emt 00:01:48]} 15. Bb2 {[%clk 01:17:43]} {[%emt
00:11:57]} Bxb2 {[%clk 01:27:50]} {[%emt 00:05:07]} 16. Qxb2 {[%clk 01:18:01]}
{[%emt 00:00:12]} Qf6 {[%clk 01:28:05]} {[%emt 00:00:15]} 17. Qc2 {[%clk
01:17:56]} {[%emt 00:00:35]} Ng4 {[%clk 01:15:37]} {[%emt 00:12:58]} 18. Nc4
{[%clk 01:13:36]} {[%emt 00:04:50]} Rd8 {[%clk 01:15:01]} {[%emt 00:01:06]} 19.
h3 {[%clk 01:08:11]} {[%emt 00:05:55]} Ne5 {[%clk 01:14:49]} {[%emt 00:00:42]}
20. Ne3 {[%clk 01:08:34]} {[%emt 00:00:06]} Be6 {[%clk 01:10:29]} {[%emt
00:04:51]} 21. f4 {[%clk 00:56:58]} {[%emt 00:12:06]} Nd7 {[%clk 01:09:51]}
{[%emt 00:01:07]} 22. Rad1 {[%clk 00:49:28]} {[%emt 00:08:00]} Nb6 {[%clk
01:07:13]} {[%emt 00:03:08]} 23. Qc5 {[%clk 00:48:10]} {[%emt 00:01:48]} Re8
{[%clk 01:03:54]} {[%emt 00:03:48]} 24. Rd2 {[%clk 00:41:24]} {[%emt 00:07:17]}
Qe7 {[%clk 00:55:28]} {[%emt 00:08:57]} 25. Qxe7 {[%clk 00:41:32]} {[%emt
00:00:22]} Rxe7 {[%clk 00:55:53]} {[%emt 00:00:04]} 26. Rfd1 {[%clk 00:41:56]}
{[%emt 00:00:05]} Rae8 {[%clk 00:52:20]} {[%emt 00:04:04]} 27. Rd8 {[%clk
00:42:05]} {[%emt 00:00:22]} Kf8 {[%clk 00:52:45]} {[%emt 00:00:05]} 28. Kf2
{[%clk 00:42:07]} {[%emt 00:00:28]} a5 {[%clk 00:52:53]} {[%emt 00:00:23]} 29.
R1d4 {[%clk 00:38:54]} {[%emt 00:03:42]} Rxd8 {[%clk 00:47:32]} {[%emt
00:05:51]} 30. Rxd8+ {[%clk 00:39:13]} {[%emt 00:00:12]} Re8 {[%clk 00:48:01]}
{[%emt 00:00:02]} 31. Rd4 {[%clk 00:39:33]} {[%emt 00:00:09]} g6 {[%clk
00:42:09]} {[%emt 00:06:23]} 32. Nd1 {[%clk 00:38:47]} {[%emt 00:01:15]} Nd5
{[%clk 00:35:59]} {[%emt 00:06:39]} 33. e4 {[%clk 00:37:12]} {[%emt 00:02:05]}
Nb4 {[%clk 00:35:58]} {[%emt 00:00:32]} 34. Nc3 {[%clk 00:37:33]} {[%emt
00:00:08]} f6 {[%clk 00:35:37]} {[%emt 00:00:52]} 35. h4 {[%clk 00:35:37]}
{[%emt 00:02:26]} Ke7 {[%clk 00:33:23]} {[%emt 00:02:43]} 36. Bf1 {[%clk
00:34:06]} {[%emt 00:02:02]} b5 {[%clk 00:30:45]} {[%emt 00:03:08]} 37. Rd2
{[%clk 00:29:34]} {[%emt 00:05:02]} Na6 {[%clk 00:29:02]} {[%emt 00:02:14]} 38.
Ke3 {[%clk 00:29:34]} {[%emt 00:00:29]} Nc5 {[%clk 00:24:05]} {[%emt 00:05:27]}
39. Rc2 {[%clk 00:29:30]} {[%emt 00:00:34]} b4 {[%clk 00:23:37]} {[%emt
00:00:58]} 40. Nb5 {[%clk 00:14:36]} {[%emt 00:15:24]} Nxe4 {[%clk 00:23:35]}
{[%emt 00:00:32]} 41. Nc7 {[%clk 00:15:01]} {[%emt 00:00:05]} Nxg3 {[%clk
00:23:59]} {[%emt 00:00:06]} 42. Nxe8 {[%clk 00:15:27]} {[%emt 00:00:04]} Nxf1+
{[%clk 00:24:24]} {[%emt 00:00:05]} 43. Kf2 {[%clk 00:15:47]} {[%emt 00:00:09]}
Kxe8 {[%clk 00:23:57]} {[%emt 00:00:58]} 44. Kxf1 {[%clk 00:14:25]} {[%emt
00:01:52]} Kd7 {[%clk 00:24:24]} {[%emt 00:00:03]} 45. Ke2 {[%clk 00:11:13]}
{[%emt 00:03:41]} Kd6 {[%clk 00:24:18]} {[%emt 00:00:35]} 46. Ke3 {[%clk
00:08:21]} {[%emt 00:03:23]} c5 {[%clk 00:22:09]} {[%emt 00:02:39]} 47. Rd2+
{[%clk 00:07:48]} {[%emt 00:01:02]} Kc6 {[%clk 00:20:30]} {[%emt 00:02:10]} 48.
Kd3 {[%clk 00:44:54]} {[%emt 00:13:24]} h6 {[%clk 01:05:20]} {[%emt 00:05:41]}
49. Kc2 {[%clk 00:28:55]} {[%emt 00:16:29]} g5 {[%clk 00:55:06]} {[%emt
00:10:44]} 50. fxg5 {[%clk 00:28:14]} {[%emt 00:01:11]} fxg5 {[%clk 00:55:04]}
{[%emt 00:00:31]} 51. hxg5 {[%clk 00:28:42]} {[%emt 00:00:02]} hxg5 {[%clk
00:55:21]} {[%emt 00:00:14]} 52. Rh2 {[%clk 00:29:04]} {[%emt 00:00:07]} g4
{[%clk 00:53:47]} {[%emt 00:02:05]} 53. Rh5 {[%clk 00:27:40]} {[%emt 00:01:54]}
a4 {[%clk 00:53:34]} {[%emt 00:00:43]} 54. Rg5 {[%clk 00:21:22]} {[%emt
00:06:48]} axb3+ {[%clk 00:48:57]} {[%emt 00:05:07]} 55. axb3 {[%clk 00:21:01]}
{[%emt 00:00:51]} Kd6 {[%clk 00:49:25]} {[%emt 00:00:01]} 56. Kb2 {[%clk
00:16:00]} {[%emt 00:05:31]} Ke7 {[%clk 00:48:55]} {[%emt 00:01:00]} 57. Rxc5
{[%clk 00:16:01]} {[%emt 00:00:29]} Kf6 {[%clk 00:49:22]} {[%emt 00:00:03]} 58.
Kc2 {[%clk 00:15:34]} {[%emt 00:00:57]} g3 {[%clk 00:49:42]} {[%emt 00:00:11]}
59. Kd2 {[%clk 00:15:57]} {[%emt 00:00:06]} g2 {[%clk 00:50:01]} {[%emt
00:00:11]} 60. Rc1 {[%clk 00:16:22]} {[%emt 00:00:04]} Bxb3 {[%clk 00:50:26]}
{[%emt 00:00:06]} 61. Ke3 {[%clk 00:15:03]} {[%emt 00:01:49]} Bc2 {[%clk
00:50:45]} {[%emt 00:00:12]} 62. Rg1 {[%clk 00:15:05]} {[%emt 00:00:27]} b3
{[%clk 00:51:07]} {[%emt 00:00:07]} 63. Kd2 {[%clk 00:15:05]} {[%emt 00:00:31]}
Be4 {[%clk 00:51:29]} {[%emt 00:00:08]} 64. Kc3 {[%clk 00:15:32]} {[%emt
00:00:03]} Bd5 {[%clk 00:51:54]} {[%emt 00:00:05]} 65. Rxg2 {[%clk 00:15:56]}
{[%emt 00:00:07]} Bxg2 {[%clk 00:52:18]} {[%emt 00:00:06]} 66. Kxb3 {[%clk
00:16:23]} {[%emt 00:00:02]} 1/2-1/2

[Event "FIDE Grand Swiss 2023"]
[Site "Villa Marina, Douglas, Isle of Man, Isle Of Man"]
[Date "2023.11.03"]
[Round "9.46"]
[White "Ivanchuk, Vasyl"]
[Black "Gurel, Ediz"]
[Result "1-0"]
[TimeControl "40/90 + 30 + 30s/move"]
[WhiteFideId "14100010"]
[BlackFideId "44507356"]
[WhiteElo "2653"]
[BlackElo "2514"]

1. e4 {[%clk 01:40:59]} e5 {[%clk 01:40:49]} {[%emt 00:00:11]} 2. Bc4 {[%clk
01:41:25]} {[%emt 00:00:03]} Nf6 {[%clk 01:41:07]} {[%emt 00:00:13]} 3. d3
{[%clk 01:41:52]} {[%emt 00:00:02]} c6 {[%clk 01:41:24]} {[%emt 00:00:14]} 4.
Nf3 {[%clk 01:42:17]} {[%emt 00:00:05]} d5 {[%clk 01:41:46]} {[%emt 00:00:08]}
5. Bb3 {[%clk 01:42:43]} {[%emt 00:00:04]} a5 {[%clk 01:41:46]} {[%emt
00:00:30]} 6. a4 {[%clk 01:42:32]} {[%emt 00:00:41]} Bb4+ {[%clk 01:41:52]}
{[%emt 00:00:24]} 7. c3 {[%clk 01:42:20]} {[%emt 00:00:42]} Bd6 {[%clk
01:42:14]} {[%emt 00:00:08]} 8. O-O {[%clk 01:42:00]} {[%emt 00:00:50]} O-O
{[%clk 01:40:28]} {[%emt 00:02:16]} 9. Re1 {[%clk 01:41:17]} {[%emt 00:01:13]}
dxe4 {[%clk 01:38:38]} {[%emt 00:02:20]} 10. dxe4 {[%clk 01:41:43]} {[%emt
00:00:04]} Qe7 {[%clk 01:38:11]} {[%emt 00:00:58]} 11. Nbd2 {[%clk 01:41:34]}
{[%emt 00:00:37]} Nbd7 {[%clk 01:35:18]} {[%emt 00:03:23]} 12. Nf1 {[%clk
01:41:03]} {[%emt 00:01:01]} Nc5 {[%clk 01:28:54]} {[%emt 00:06:54]} 13. Bc2
{[%clk 01:40:13]} {[%emt 00:01:21]} Be6 {[%clk 01:22:22]} {[%emt 00:07:02]} 14.
Ng3 {[%clk 01:38:53]} {[%emt 00:01:50]} Rfd8 {[%clk 01:21:50]} {[%emt
00:01:02]} 15. Qe2 {[%clk 01:38:25]} {[%emt 00:00:57]} Qc7 {[%clk 01:15:45]}
{[%emt 00:06:35]} 16. Bg5 {[%clk 01:35:11]} {[%emt 00:03:44]} Be7 {[%clk
00:59:59]} {[%emt 00:16:16]} 17. Nf5 {[%clk 01:35:08]} {[%emt 00:00:34]} Bxf5
{[%clk 01:00:09]} {[%emt 00:00:21]} 18. exf5 {[%clk 01:35:17]} {[%emt
00:00:20]} e4 {[%clk 01:00:23]} {[%emt 00:00:17]} 19. Nd2 {[%clk 01:33:25]}
{[%emt 00:02:21]} Re8 {[%clk 00:51:53]} {[%emt 00:08:59]} 20. Rad1 {[%clk
01:27:48]} {[%emt 00:06:07]} Rad8 {[%clk 00:41:30]} {[%emt 00:10:55]} 21. g3
{[%clk 01:14:31]} {[%emt 00:13:45]} Qc8 {[%clk 00:32:39]} {[%emt 00:09:22]} 22.
Nc4 {[%clk 00:52:12]} {[%emt 00:22:50]} Rxd1 {[%clk 00:28:12]} 23. Rxd1 {[%clk
00:49:26]} {[%emt 00:08:12]} Qxf5 {[%clk 00:26:36]} {[%emt 00:02:06]} 24. Bxf6
{[%clk 00:49:03]} {[%emt 00:00:53]} Qxf6 {[%clk 00:27:03]} {[%emt 00:00:03]} 25.
Nxa5 {[%clk 00:49:24]} {[%emt 00:00:09]} Bf8 {[%clk 00:25:19]} {[%emt
00:02:12]} 26. Nc4 {[%clk 00:34:06]} {[%emt 00:15:50]} g6 {[%clk 00:20:55]}
{[%emt 00:04:55]} 27. a5 {[%clk 00:32:47]} {[%emt 00:01:48]} Qe6 {[%clk
00:19:57]} {[%emt 00:01:27]} 28. Kg2 {[%clk 00:21:43]} {[%emt 00:11:34]} Nd7
{[%clk 00:17:29]} {[%emt 00:02:59]} 29. Ne3 {[%clk 00:16:40]} {[%emt 00:05:32]}
Nf6 {[%clk 00:16:21]} {[%emt 00:01:39]} 30. Qc4 {[%clk 00:15:58]} {[%emt
00:01:11]} Qe5 {[%clk 00:15:03]} {[%emt 00:01:49]} 31. a6 {[%clk 00:13:26]}
{[%emt 00:03:02]} bxa6 {[%clk 00:15:20]} {[%emt 00:00:13]} 32. Qxc6 {[%clk
00:12:36]} {[%emt 00:01:20]} Re6 {[%clk 00:13:24]} {[%emt 00:02:26]} 33. Qc8
{[%clk 00:09:04]} {[%emt 00:04:02]} Kg7 {[%clk 00:12:04]} {[%emt 00:01:50]} 34.
b4 {[%clk 00:09:03]} {[%emt 00:00:31]} Qb5 {[%clk 00:08:04]} {[%emt 00:04:30]}
35. Qc4 {[%clk 00:06:12]} {[%emt 00:03:21]} Rc6 {[%clk 00:06:00]} {[%emt
00:02:35]} 36. Qd4 {[%clk 00:06:08]} {[%emt 00:00:32]} Rd6 {[%clk 00:05:34]}
{[%emt 00:00:58]} 37. Qa7 {[%clk 00:06:36]} {[%emt 00:00:01]} Qb6 {[%clk
00:02:40]} {[%emt 00:03:24]} 38. Qxb6 {[%clk 00:05:32]} {[%emt 00:01:34]} Rxb6
{[%clk 00:03:09]} {[%emt 00:00:01]} 39. Rd4 {[%clk 00:03:44]} {[%emt 00:02:18]}
Rc6 {[%clk 00:03:17]} {[%emt 00:00:22]} 40. Nc4 {[%clk 00:03:16]} {[%emt
00:00:58]} Be7 {[%clk 00:01:49]} {[%emt 00:01:58]} 41. Kf1 {[%clk 00:01:28]}
{[%emt 00:02:16]} e3 {[%clk 00:39:23]} {[%emt 00:12:58]} 42. f3 {[%clk
00:48:03]} {[%emt 00:03:54]} Rc7 {[%clk 00:36:37]} {[%emt 00:03:17]} 43. Bb3
{[%clk 00:46:16]} {[%emt 00:02:17]} Nd7 {[%clk 00:27:20]} {[%emt 00:09:46]} 44.
Re4 {[%clk 00:40:45]} {[%emt 00:06:00]} Bf6 {[%clk 00:21:13]} {[%emt 00:06:39]}
45. Rxe3 {[%clk 00:40:29]} {[%emt 00:00:45]} Rc6 {[%clk 00:21:41]} {[%emt
00:00:03]} 46. f4 {[%clk 00:38:12]} {[%emt 00:02:46]} Nb6 {[%clk 00:19:09]}
{[%emt 00:03:03]} 47. Ne5 {[%clk 00:38:18]} {[%emt 00:00:23]} Bxe5 {[%clk
00:19:32]} {[%emt 00:00:08]} 48. fxe5 {[%clk 00:38:43]} {[%emt 00:00:05]} a5
{[%clk 00:16:48]} {[%emt 00:03:14]} 49. Ke2 {[%clk 00:28:57]} {[%emt 00:10:14]}
axb4 {[%clk 00:16:04]} {[%emt 00:01:15]} 50. cxb4 {[%clk 00:29:20]} {[%emt
00:00:08]} Rc1 {[%clk 00:15:23]} {[%emt 00:01:11]} 51. Kd3 {[%clk 00:22:55]}
{[%emt 00:06:55]} Nd7 {[%clk 00:13:40]} {[%emt 00:02:13]} 52. Kd4 {[%clk
00:22:54]} {[%emt 00:00:30]} Rc7 {[%clk 00:11:40]} {[%emt 00:02:31]} 53. b5
{[%clk 00:19:35]} {[%emt 00:03:48]} Rb7 {[%clk 00:10:32]} {[%emt 00:01:39]} 54.
Bc4 {[%clk 00:17:50]} {[%emt 00:02:13]} Ra7 {[%clk 00:09:55]} {[%emt 00:01:09]}
55. Kd5 {[%clk 00:09:47]} {[%emt 00:08:31]} Nb6+ {[%clk 00:08:27]} {[%emt
00:02:00]} 56. Kc5 {[%clk 00:09:48]} {[%emt 00:00:28]} Nd7+ {[%clk 00:08:32]}
{[%emt 00:00:26]} 57. Kc6 {[%clk 00:08:58]} {[%emt 00:01:18]} Nb8+ {[%clk
00:08:58]} {[%emt 00:00:06]} 58. Kb6 {[%clk 00:07:52]} {[%emt 00:01:35]} Re7
{[%clk 00:08:59]} {[%emt 00:00:29]} 59. e6 {[%emt 00:01:16]} h5 {[%clk
00:08:49]} 60. h4 {[%clk 00:07:26]} {[%emt 00:00:50]} fxe6 {[%clk 00:07:43]}
{[%emt 00:01:37]} 61. Rxe6 {[%clk 00:07:43]} {[%emt 00:00:13]} Nd7+ {[%clk
00:08:07]} {[%emt 00:00:06]} 62. Kc7 {[%clk 00:07:49]} {[%emt 00:00:22]} Rxe6
{[%clk 00:07:10]} {[%emt 00:01:28]} 63. Bxe6 {[%clk 00:08:15]} {[%emt
00:00:05]} Nc5 {[%clk 00:07:34]} {[%emt 00:00:06]} 64. Kd6 {[%clk 00:08:08]}
{[%emt 00:00:35]} Nb7+ {[%clk 00:07:24]} {[%emt 00:00:42]} 65. Ke5 {[%clk
00:08:00]} {[%emt 00:00:37]} 1-0